bitfinex/quotes_BTCUSD_20250529
["timestamp","ask_amount","ask_price","bid_price","bid_amount"]
[1748478588980,0.49777948,107980.0,107970.0,1.25959266]
[1748478591417,0.18521948,107980.0,107970.0,1.25959266]
[1748478591619,0.49689948,107980.0,107970.0,1.25959266]
[1748478593087,0.49689948,107980.0,107970.0,1.23032566]
[1748478595011,0.24641948,107980.0,107970.0,0.89032566]
[1748478595221,0.55713948,107980.0,107970.0,0.89032566]
[1748478599908,0.55713948,107980.0,107970.0,0.59593395]
[1748478600543,0.49593948,107980.0,107970.0,0.59593395]
[1748478600750,0.49553948,107980.0,107970.0,0.59593395]
[1748478604097,0.18521948,107980.0,107970.0,0.62813395]
[1748478604318,0.00926028,107980.0,107970.0,0.84527058]
[1748478604532,0.01852073,107980.0,107970.0,1.21305503]
[1748478604754,0.04630304,107980.0,107970.0,1.22778525]
[1748478604984,0.22226224,107980.0,107970.0,1.21852402]
[1748478605205,0.20374116,107980.0,107970.0,1.01476417]
[1748478605420,0.20374116,107980.0,107970.0,1.00003395]
[1748478606517,0.51558116,107980.0,107970.0,1.00003395]
[1748478606727,0.20374116,107980.0,107970.0,1.00003395]
[1748478606952,0.20374116,107980.0,107970.0,1.01476417]
[1748478607168,0.20374116,107980.0,107970.0,1.00003395]
[1748478609970,0.51642116,107980.0,107970.0,1.00003395]
[1748478610389,0.20374116,107980.0,107970.0,1.00003395]
[1748478610600,0.20374116,107980.0,107970.0,1.01476417]
[1748478611049,0.19448036,107980.0,107970.0,1.01476417]
[1748478611719,0.19448036,107980.0,107970.0,1.024026]
[1748478612573,0.19448036,107980.0,107970.0,1.01323516]
[1748478612994,0.19448036,107980.0,107970.0,1.02249699]
[1748478613202,0.19448036,107980.0,107970.0,1.03175873]
[1748478613418,0.19448036,107980.0,107970.0,1.21699536]
[1748478613622,0.19448036,107980.0,107970.0,1.02249699]
[1748478614073,0.19448036,107980.0,107970.0,1.01323516]
[1748478614708,0.19448036,107980.0,107970.0,1.30762687]
[1748478614920,0.19448036,107980.0,107970.0,1.4928635]
[1748478615150,0.50780036,107980.0,107970.0,1.5113869]
[1748478615567,0.50780036,107980.0,107970.0,1.51138707]
[1748478615771,0.49853948,107980.0,107970.0,1.30762687]
[1748478616206,0.49853948,107980.0,107970.0,1.29289665]
[1748478616676,0.49833948,107980.0,107970.0,1.50212533]
[1748478616890,0.49833948,107980.0,107970.0,1.33541287]
[1748478617757,0.49833948,107980.0,107970.0,1.30762687]
[1748478618630,0.18521948,107980.0,107970.0,1.30762687]
[1748478618846,0.18521948,107980.0,107970.0,1.30770622]
[1748478619501,0.18521948,107980.0,107970.0,1.20466622]
[1748478619716,0.18521948,107980.0,107970.0,0.99858429]
[1748478621124,0.18521948,107980.0,107970.0,0.89554429]
[1748478621330,0.18521948,107980.0,107970.0,0.99858429]
[1748478622810,0.49817948,107980.0,107970.0,0.99858429]
[1748478625656,0.49753948,107980.0,107970.0,0.99858429]
[1748478626131,0.49753948,107980.0,107970.0,1.01331451]
[1748478627025,0.49753948,107980.0,107970.0,1.01407451]
[1748478627238,0.49753948,107980.0,107970.0,0.99934429]
[1748478627448,0.49753948,107980.0,107970.0,1.01407451]
[1748478628307,0.49753948,107980.0,107970.0,0.99934429]
[1748478628508,0.49753948,107980.0,107970.0,1.01407451]
[1748478628934,0.49753948,107980.0,107970.0,0.99934429]
[1748478629344,0.49753948,107980.0,107970.0,1.01407451]
[1748478629551,0.49753948,107980.0,107970.0,1.30846622]
[1748478629760,0.49753948,107980.0,107970.0,1.20466622]
[1748478629974,0.49753948,107980.0,107970.0,1.30846622]
[1748478630193,0.49753948,107980.0,107970.0,1.293736]
[1748478630397,0.49753948,107980.0,107970.0,1.30846622]
[1748478634290,0.49753948,107980.0,107970.0,1.20466622]
[1748478634444,0.49753948,107980.0,107970.0,0.889636]
[1748478634646,0.52793948,107980.0,107970.0,0.889636]
[1748478634870,0.56053948,107980.0,107970.0,0.4929733]
[1748478635073,0.56053948,107980.0,107970.0,0.50571935]
[1748478637462,0.56053948,107980.0,107970.0,0.40191935]
[1748478637683,0.56053948,107980.0,107970.0,0.50571935]
[1748478637684,0.55937948,107980.0,107970.0,0.50571935]
[1748478637897,0.57392033,107980.0,107970.0,0.50571935]
[1748478638115,0.91392033,107980.0,107970.0,0.50571935]
[1748478638342,1.00497428,107980.0,107970.0,0.40191935]
[1748478638548,1.10602823,107980.0,107970.0,0.50471935]
[1748478638994,1.10602823,107980.0,107970.0,0.50371935]
[1748478639210,1.10602823,107980.0,107970.0,0.39991935]
[1748478639428,1.10602823,107980.0,107970.0,0.50371935]
[1748478639642,1.15602823,107980.0,107970.0,0.50371935]
[1748478640357,1.15602823,107980.0,107970.0,0.39991935]
[1748478640674,1.15602823,107980.0,107970.0,0.50371935]
[1748478642242,1.06497428,107980.0,107970.0,0.50371935]
[1748478643406,1.11497428,107980.0,107970.0,0.50371935]
[1748478643698,1.06497428,107980.0,107970.0,0.50371935]
[1748478645263,1.09277428,107980.0,107970.0,0.50371935]
[1748478646334,0.18521948,107980.0,107970.0,0.39991935]
[1748478646551,0.18521948,107980.0,107970.0,0.50371935]
[1748478646769,0.49553948,107980.0,107970.0,0.50371935]
[1748478646977,0.83553948,107980.0,107970.0,0.50371935]
[1748478647246,1.00503428,107980.0,107970.0,0.39991935]
[1748478647455,1.06503428,107980.0,107970.0,0.50371935]
[1748478648547,1.40467591,107980.0,107970.0,0.50371935]
[1748478648761,1.39467591,107980.0,107970.0,0.50371935]
[1748478648980,1.39467591,107980.0,107970.0,0.39991935]
[1748478648981,1.48572986,107980.0,107970.0,0.39991935]
[1748478649224,1.48572986,107980.0,107970.0,0.50371935]
[1748478649445,1.43572986,107980.0,107970.0,0.50371935]
[1748478649878,0.18530529,107930.0,107910.0,0.1376567]
[1748478650094,0.50478841,107920.0,107910.0,0.1376567]
[1748478650311,0.50478841,107920.0,107910.0,0.6414167]
[1748478650520,0.84478841,107920.0,107910.0,0.6414167]
[1748478651177,0.84478841,107920.0,107910.0,0.6434167]
[1748478651393,0.84478841,107920.0,107910.0,0.50376]
[1748478651394,0.85942068,107920.0,107910.0,0.50376]
[1748478651612,0.92302068,107920.0,107910.0,0.50576]
[1748478651831,0.83942068,107920.0,107910.0,0.50576]
[1748478652040,0.84868663,107920.0,107910.0,0.50576]
[1748478652283,0.52394578,107920.0,107910.0,0.50976]
[1748478652498,0.52394578,107920.0,107910.0,0.57246]
[1748478652705,0.83390578,107920.0,107910.0,0.56846]
[1748478653138,0.83390578,107920.0,107910.0,0.5685]
[1748478655016,0.83342578,107920.0,107910.0,0.5685]
[1748478655245,0.83342578,107920.0,107910.0,0.39996]
[1748478655470,0.83342578,107920.0,107910.0,0.50196]
[1748478656192,0.86412578,107920.0,107910.0,0.39996]
[1748478656437,1.43271616,107920.0,107910.0,0.50196]
[1748478656662,1.35166221,107920.0,107910.0,0.50196]
[1748478656893,1.35166221,107920.0,107910.0,0.39996]
[1748478657123,1.01202058,107920.0,107910.0,0.50196]
[1748478657387,1.35166221,107920.0,107910.0,0.50196]
[1748478658327,1.34166221,107920.0,107910.0,0.50196]
[1748478658558,1.35166221,107920.0,107910.0,0.50196]
[1748478658785,1.01202058,107920.0,107910.0,0.50196]
[1748478659015,1.33166221,107920.0,107910.0,0.50196]
[1748478659212,1.34562148,107920.0,107910.0,0.50196]
[1748478660087,1.00597985,107920.0,107910.0,0.50196]
[1748478660348,1.34562148,107920.0,107910.0,0.50196]
[1748478660572,1.33562148,107920.0,107910.0,0.50196]
[1748478661305,0.99597985,107920.0,107910.0,0.50196]
[1748478661758,1.33562148,107920.0,107910.0,0.50196]
[1748478665577,0.99597985,107920.0,107910.0,0.50196]
[1748478665777,1.33482148,107920.0,107910.0,0.50196]
[1748478665985,1.31482148,107920.0,107910.0,0.50196]
[1748478666220,1.25182148,107920.0,107910.0,0.50196]
[1748478666771,1.28242148,107920.0,107910.0,0.50196]
[1748478666987,1.31352148,107920.0,107910.0,0.50196]
[1748478667300,1.25182148,107920.0,107910.0,0.50196]
[1748478667900,0.8209659,107920.0,107910.0,0.53356]
[1748478668094,0.8209659,107920.0,107910.0,0.56496]
[1748478668670,0.80700663,107920.0,107910.0,0.56496]
[1748478670004,0.80700663,107920.0,107880.0,0.33964163]
[1748478670005,0.20391078,107890.0,107880.0,0.33964163]
[1748478670209,0.51243078,107890.0,107880.0,1.23606611]
[1748478670413,0.20391078,107890.0,107880.0,1.23606611]
[1748478670626,0.51243078,107890.0,107880.0,1.23606611]
[1748478670830,0.51243078,107890.0,107880.0,1.23606742]
[1748478671036,0.20391078,107890.0,107880.0,1.23606742]
[1748478671251,0.51243078,107890.0,107880.0,1.25033697]
[1748478671452,0.51243078,107890.0,107880.0,1.24406742]
[1748478671666,0.21317939,107890.0,107880.0,1.77902723]
[1748478671879,0.51243112,107890.0,107880.0,1.58436676]
[1748478672105,0.51243112,107890.0,107880.0,1.7790274]
[1748478672295,0.5031626,107890.0,107880.0,1.23545558]
[1748478673014,0.5031626,107890.0,107880.0,1.29925558]
[1748478673661,0.4831626,107890.0,107880.0,1.29925558]
[1748478674289,0.1746426,107890.0,107880.0,1.82428838]
[1748478674522,0.1746426,107890.0,107880.0,2.19209644]
[1748478674751,0.1746426,107890.0,107880.0,2.18282723]
[1748478674984,1.62967945,107900.0,107890.0,0.34]
[1748478675239,1.93819945,107900.0,107890.0,0.83559558]
[1748478676269,1.62967945,107900.0,107890.0,0.83559558]
[1748478676485,1.93819945,107900.0,107890.0,0.83559558]
[1748478677136,1.93819945,107900.0,107890.0,0.83959558]
[1748478678310,1.93819945,107900.0,107890.0,0.26395395]
[1748478678535,1.93819945,107900.0,107890.0,0.27259621]
[1748478679012,1.93819945,107900.0,107890.0,0.27259666]
[1748478679233,1.93819945,107900.0,107890.0,0.26395395]
[1748478679454,1.93819945,107900.0,107890.0,0.27259685]
[1748478679670,1.93819945,107900.0,107890.0,0.27260172]
[1748478679929,1.93819945,107900.0,107890.0,0.26395395]
[1748478680632,1.93819945,107900.0,107890.0,0.16195395]
[1748478680851,1.93819945,107900.0,107890.0,0.26395395]
[1748478680852,1.91819945,107900.0,107890.0,0.26395395]
[1748478682009,2.32094108,107900.0,107890.0,0.108]
[1748478682247,2.32094108,107900.0,107890.0,0.11665483]
[1748478682508,2.33548193,107900.0,107890.0,0.11665558]
[1748478683202,2.33548193,107900.0,107890.0,0.1146542]
[1748478683437,2.33548193,107900.0,107890.0,0.1156542]
[1748478683674,2.76653588,107900.0,107890.0,0.103]
[1748478683896,2.76653588,107900.0,107890.0,0.106]
[1748478684557,2.76653588,107900.0,107890.0,0.103]
[1748478684776,2.76653588,107900.0,107890.0,0.102]
[1748478685026,2.77053588,107900.0,107890.0,0.102]
[1748478687940,2.75053588,107900.0,107890.0,0.102]
[1748478688412,2.81053588,107900.0,107890.0,0.102]
[1748478689324,0.61058336,107890.0,107880.0,0.40016]
[1748478689547,1.04127894,107890.0,107880.0,0.50152]
[1748478690701,1.01015731,107890.0,107880.0,0.50152]
[1748478690915,1.34979894,107890.0,107880.0,0.50152]
[1748478691547,1.35179894,107890.0,107880.0,0.50152]
[1748478694571,1.36179894,107890.0,107880.0,0.50152]
[1748478694968,1.34179894,107890.0,107880.0,0.50152]
[1748478698239,0.68363731,107890.0,107880.0,0.50152]
[1748478698446,1.33179894,107890.0,107880.0,0.50152]
[1748478701343,1.33179894,107890.0,107880.0,0.40016]
[1748478701344,1.39179894,107890.0,107880.0,0.40016]
[1748478701572,1.39179894,107890.0,107880.0,0.50156]
[1748478702086,1.37179894,107890.0,107880.0,0.50156]
[1748478702978,1.03215731,107890.0,107880.0,0.39156]
[1748478703224,1.37179894,107890.0,107880.0,0.39156]
[1748478703462,1.31179894,107890.0,107880.0,0.29016]
[1748478704384,1.30979894,107890.0,107880.0,0.29016]
[1748478704912,1.32079894,107890.0,107880.0,0.29016]
[1748478705146,1.32379894,107890.0,107880.0,0.29016]
[1748478705610,1.01527894,107890.0,107880.0,0.29016]
[1748478705853,0.66563731,107890.0,107880.0,0.29016]
[1748478706086,1.34925809,107890.0,107880.0,0.29016]
[1748478706313,0.60423731,107890.0,107880.0,0.29016]
[1748478706553,0.91275731,107890.0,107880.0,0.29016]
[1748478706803,1.25239894,107890.0,107880.0,0.29016]
[1748478707258,0.91275731,107890.0,107880.0,0.29016]
[1748478708469,1.30239894,107890.0,107880.0,0.29016]
[1748478708704,1.25239894,107890.0,107880.0,0.29016]
[1748478708943,0.60423731,107890.0,107880.0,0.35266]
[1748478709179,0.89271731,107890.0,107880.0,0.24266]
[1748478710295,0.58423731,107890.0,107880.0,0.24266]
[1748478710549,0.13864251,107890.0,107880.0,0.24266]
[1748478710834,0.44712251,107890.0,107880.0,0.24266]
[1748478711102,0.78712251,107890.0,107880.0,0.24266]
[1748478711332,0.47564251,107890.0,107880.0,0.24266]
[1748478711555,0.47564251,107890.0,107880.0,0.67335558]
[1748478711775,0.78512251,107890.0,107880.0,0.67335558]
[1748478711987,0.78512251,107890.0,107880.0,0.33371395]
[1748478711988,0.44412251,107890.0,107880.0,0.33371395]
[1748478712855,0.44412251,107890.0,107880.0,0.67335558]
[1748478713063,0.44412251,107890.0,107880.0,0.33371395]
[1748478714237,0.13564251,107890.0,107880.0,0.67335558]
[1748478714486,0.44408251,107890.0,107880.0,0.67335558]
[1748478716170,0.42408251,107890.0,107880.0,0.67335558]
[1748478716398,0.42408251,107890.0,107880.0,0.67435558]
[1748478716624,0.42308251,107890.0,107880.0,0.67435558]
[1748478718436,0.11464251,107890.0,107880.0,0.67435558]
[1748478718660,0.42304251,107890.0,107880.0,0.67435558]
[1748478720424,0.11464251,107890.0,107880.0,1.01399721]
[1748478720636,0.10537399,107890.0,107880.0,1.01399721]
[1748478721079,0.41373399,107890.0,107880.0,0.33471395]
[1748478721287,0.41373399,107890.0,107880.0,0.67435558]
[1748478722143,0.41373399,107890.0,107880.0,0.33471395]
[1748478722368,0.41373399,107890.0,107880.0,0.67435558]
[1748478723208,0.39373399,107890.0,107880.0,0.67435558]
[1748478723431,0.39373399,107890.0,107880.0,0.33471395]
[1748478723639,0.39373399,107890.0,107880.0,0.67435558]
[1748478725001,0.39373399,107890.0,107880.0,0.43599395]
[1748478725240,0.39373399,107890.0,107880.0,0.24366]
[1748478725465,0.39373399,107890.0,107880.0,0.34494]
[1748478726115,0.39373399,107890.0,107880.0,0.68458163]
[1748478727295,0.39365399,107890.0,107880.0,0.43599395]
[1748478727539,0.39365399,107890.0,107880.0,0.77563558]
[1748478728932,0.39365399,107890.0,107880.0,0.43599395]
[1748478729400,0.39365399,107890.0,107880.0,0.28244]
[1748478729621,0.79569562,107890.0,107880.0,0.28244]
[1748478731188,1.24129042,107890.0,107880.0,0.28244]
[1748478731495,1.31574712,107890.0,107880.0,0.28244]
[1748478731683,1.22129042,107890.0,107880.0,0.28244]
[1748478732110,1.22129042,107890.0,107880.0,0.17244]
[1748478732340,1.22129042,107890.0,107880.0,0.17144]
[1748478732555,1.22229042,107890.0,107880.0,0.17144]
[1748478734306,1.22529042,107890.0,107880.0,0.17144]
[1748478734730,0.88560879,107890.0,107880.0,0.17144]
[1748478734938,1.22525042,107890.0,107880.0,0.17144]
[1748478735166,0.88560879,107890.0,107880.0,0.17144]
[1748478737648,1.22525042,107890.0,107880.0,0.17144]
[1748478738550,1.20525042,107890.0,107880.0,0.17144]
[1748478744408,1.20525042,107890.0,107880.0,0.10128]
[1748478745734,1.15987643,107890.0,107880.0,0.10128]
[1748478745950,1.34525042,107890.0,107880.0,0.10128]
[1748478746396,0.20394858,107870.0,107860.0,0.40024]
[1748478746624,0.51210858,107870.0,107860.0,0.5014]
[1748478746842,0.51210858,107870.0,107860.0,0.5316]
[1748478747522,0.51210858,107870.0,107860.0,0.5326]
[1748478747762,0.85175021,107870.0,107860.0,0.40173462]
[1748478747983,0.85175021,107870.0,107860.0,0.50289462]
[1748478747984,0.92819106,107870.0,107860.0,0.50289462]
[1748478748225,1.35924501,107870.0,107860.0,0.50289462]
[1748478748654,1.01960338,107870.0,107860.0,0.50289462]
[1748478748869,1.35924501,107870.0,107860.0,0.50289462]
[1748478749329,1.01960338,107870.0,107860.0,0.50289462]
[1748478749554,1.35924501,107870.0,107860.0,0.50289462]
[1748478749991,1.36924501,107870.0,107860.0,0.50289462]
[1748478750422,1.36924501,107870.0,107860.0,0.50189462]
[1748478750676,1.37024501,107870.0,107860.0,0.50189462]
[1748478750952,1.15506008,107870.0,107860.0,0.00049462]
[1748478751168,1.46429896,107870.0,107860.0,0.00049462]
[1748478751383,1.37024501,107870.0,107860.0,0.00049462]
[1748478751610,1.37424501,107870.0,107860.0,0.00049462]
[1748478752048,1.37324501,107870.0,107860.0,0.00049462]
[1748478752304,1.03360338,107870.0,107860.0,0.00049462]
[1748478752527,1.37624501,107870.0,107860.0,0.00049462]
[1748478752757,1.35324501,107870.0,107860.0,0.00049462]
[1748478752978,1.37178523,107870.0,107860.0,0.00049462]
[1748478753231,1.0261436,107870.0,107860.0,0.00049462]
[1748478753455,1.41178523,107870.0,107860.0,0.00049462]
[1748478753683,1.0771436,107870.0,107860.0,0.00049462]
[1748478753895,1.41178523,107870.0,107860.0,0.00049462]
[1748478754375,1.41578523,107870.0,107860.0,0.00049462]
[1748478755066,1.41178523,107870.0,107860.0,0.00049462]
[1748478755272,1.41478523,107870.0,107860.0,0.00049462]
[1748478755704,0.64054275,107870.0,107860.0,0.03159462]
[1748478755916,0.2094888,107870.0,107860.0,0.03159462]
[1748478756128,0.5176488,107870.0,107860.0,0.06419462]
[1748478756336,0.8576488,107870.0,107860.0,0.06419462]
[1748478756546,1.29588523,107870.0,107860.0,0.00049462]
[1748478756758,1.02062523,107870.0,107860.0,0.00049462]
[1748478757003,1.29988523,107870.0,107860.0,0.00049462]
[1748478757183,0.9602436,107870.0,107860.0,0.00049462]
[1748478759989,1.31158523,107870.0,107860.0,0.00049462]
[1748478760207,1.34308523,107870.0,107860.0,0.10165462]
[1748478760866,1.0034436,107870.0,107860.0,0.10165462]
[1748478761075,1.34308523,107870.0,107860.0,0.10165462]
[1748478761713,0.9402436,107870.0,107860.0,0.10165462]
[1748478761918,1.27988523,107870.0,107860.0,0.10165462]
[1748478762139,0.9402436,107870.0,107860.0,0.10165462]
[1748478762395,1.27988523,107870.0,107860.0,0.10165462]
[1748478763045,1.27988523,107870.0,107860.0,0.13205462]
[1748478763256,0.9402436,107870.0,107860.0,0.13205462]
[1748478763692,0.9402436,107870.0,107860.0,0.10165462]
[1748478763918,0.6320836,107870.0,107860.0,0.10165462]
[1748478764134,0.9402436,107870.0,107860.0,0.16585462]
[1748478764804,0.9402036,107870.0,107860.0,0.16585462]
[1748478767031,0.9202036,107870.0,107860.0,0.16585462]
[1748478768309,0.9202036,107870.0,107830.0,0.2946]
[1748478768310,0.19473276,107840.0,107830.0,0.2946]
[1748478768522,0.50285276,107840.0,107830.0,0.82660387]
[1748478769200,0.19473276,107840.0,107830.0,0.82660387]
[1748478769406,0.50285276,107840.0,107830.0,0.82960387]
[1748478770318,0.50285276,107840.0,107830.0,0.83060387]
[1748478771389,0.50285276,107840.0,107830.0,0.89100387]
[1748478773972,0.48285276,107840.0,107830.0,0.89100387]
[1748478775506,0.49212558,107840.0,107830.0,0.89100387]
[1748478778977,0.49200558,107840.0,107830.0,0.89100387]
[1748478779190,0.19475081,107830.0,107820.0,0.69673849]
[1748478779403,0.19475081,107830.0,107820.0,1.2285235]
[1748478780032,0.2040244,107830.0,107820.0,1.23779821]
[1748478780250,0.2040244,107830.0,107820.0,1.78148318]
[1748478780486,0.2040244,107830.0,107820.0,1.78548335]
[1748478780712,0.2040244,107830.0,107820.0,1.10820009]
[1748478780924,0.22257202,107830.0,107820.0,1.7967578]
[1748478781141,0.51057202,107830.0,107820.0,1.78748335]
[1748478781818,0.5198457,107830.0,107820.0,1.7967578]
[1748478782034,0.5198457,107830.0,107820.0,1.80603208]
[1748478782243,0.5198457,107830.0,107820.0,1.85278335]
[1748478782453,0.51057202,107830.0,107820.0,1.85278335]
[1748478782666,0.51057202,107830.0,107820.0,1.8620578]
[1748478782872,0.3343684,107830.0,107820.0,1.87133208]
[1748478783569,0.3343684,107830.0,107820.0,1.87133157]
[1748478783987,0.51984553,107830.0,107820.0,1.84350864]
[1748478784429,0.51984553,107830.0,107820.0,1.85278292]
[1748478784847,0.51984553,107830.0,107820.0,1.84350864]
[1748478785114,0.3343684,107830.0,107820.0,1.86205712]
[1748478785329,0.51984553,107830.0,107820.0,1.84350864]
[1748478785539,0.51057202,107830.0,107820.0,1.84350864]
[1748478785790,0.50275098,107830.0,107820.0,1.85278309]
[1748478786004,0.31727359,107830.0,107820.0,1.86205729]
[1748478786218,0.33582061,107830.0,107820.0,1.87133157]
[1748478786432,0.52129774,107830.0,107820.0,1.86205746]
[1748478786857,0.01854642,107830.0,107820.0,1.87133157]
[1748478787040,0.34501369,107830.0,107820.0,1.87133157]
[1748478787318,0.35428746,107830.0,107820.0,1.87133157]
[1748478787754,0.33574001,107830.0,107820.0,1.87133157]
[1748478788194,0.31574001,107830.0,107820.0,1.87133157]
[1748478788856,0.33428703,107830.0,107820.0,1.87133157]
[1748478789095,0.32646642,107830.0,107820.0,1.87133157]
[1748478789334,0.34501361,107830.0,107820.0,1.88606179]
[1748478789575,0.35428738,107830.0,107820.0,1.54606179]
[1748478790048,0.04636738,107830.0,107820.0,0.86677853]
[1748478790537,0.03709361,107830.0,107820.0,0.86677853]
[1748478790756,0.01854642,107830.0,107820.0,0.86677853]
[1748478790972,0.02781993,107830.0,107820.0,0.86677853]
[1748478791187,0.18544032,107860.0,107840.0,0.23660566]
[1748478791423,0.00927101,107860.0,107850.0,0.47167026]
[1748478791638,0.52111851,107860.0,107850.0,0.46008078]
[1748478791857,0.50257674,107860.0,107850.0,0.55069395]
[1748478792782,0.50257674,107860.0,107850.0,0.48669395]
[1748478793001,0.50257674,107860.0,107850.0,0.19409395]
[1748478793481,0.50257674,107860.0,107850.0,0.19709395]
[1748478795252,0.48257674,107860.0,107850.0,0.09605395]
[1748478795454,0.48257674,107860.0,107850.0,0.19709395]
[1748478797073,0.48257674,107860.0,107850.0,0.19209395]
[1748478797548,0.54637674,107860.0,107850.0,0.10604]
[1748478798435,0.54637674,107860.0,107850.0,0.10104]
[1748478799489,0.54637674,107860.0,107850.0,0.50136]
[1748478800349,0.88660951,107860.0,107850.0,0.50136]
[1748478801286,0.54637674,107860.0,107850.0,0.50136]
[1748478802325,0.52637674,107860.0,107850.0,0.50136]
[1748478804349,1.20660951,107860.0,107850.0,0.40032]
[1748478804567,1.20660951,107860.0,107850.0,0.50136]
[1748478804568,1.29766346,107860.0,107850.0,0.50136]
[1748478804817,1.31220431,107860.0,107850.0,0.50136]
[1748478805565,1.31320431,107860.0,107850.0,0.49636]
[1748478805805,1.31420431,107860.0,107850.0,0.49636]
[1748478806037,1.31220431,107860.0,107850.0,0.49636]
[1748478806504,1.31620431,107860.0,107850.0,0.49636]
[1748478807895,0.65355069,107860.0,107850.0,0.49636]
[1748478808121,1.30150346,107860.0,107850.0,0.49636]
[1748478809248,0.96127069,107860.0,107850.0,0.49636]
[1748478809472,1.28150346,107860.0,107850.0,0.49636]
[1748478810410,1.29604431,107860.0,107850.0,0.49636]
[1748478811583,1.29600431,107860.0,107850.0,0.49636]
[1748478812240,1.29600431,107860.0,107850.0,0.10104]
[1748478812894,0.26500532,107840.0,107830.0,0.40036]
[1748478813106,0.91291809,107840.0,107830.0,0.50124]
[1748478814193,0.57268532,107840.0,107830.0,0.50124]
[1748478814405,0.91291809,107840.0,107830.0,0.40036]
[1748478814633,0.91291809,107840.0,107830.0,0.50124]
[1748478814850,0.57268532,107840.0,107830.0,0.50124]
[1748478815516,0.20400532,107840.0,107830.0,0.50124]
[1748478815733,0.51164532,107840.0,107830.0,0.56564]
[1748478816351,0.49164532,107840.0,107830.0,0.56564]
[1748478816604,0.2025507,107840.0,107830.0,0.56564]
[1748478816816,0.5101907,107840.0,107830.0,0.56564]
[1748478817030,0.2025507,107840.0,107830.0,0.65669395]
[1748478817239,0.5101907,107840.0,107830.0,0.65669395]
[1748478818822,0.5101907,107840.0,107830.0,0.95129395]
[1748478821368,0.20400532,107840.0,107830.0,1.15531836]
[1748478821596,0.51160532,107840.0,107830.0,0.65669395]
[1748478821846,0.50233276,107840.0,107830.0,0.65669395]
[1748478823494,0.48233276,107840.0,107830.0,0.65669395]
[1748478824652,0.17473276,107840.0,107830.0,0.95129395]
[1748478825430,0.48229276,107840.0,107830.0,0.95129395]
[1748478826878,0.48229276,107840.0,107830.0,0.85041395]
[1748478827085,0.48229276,107840.0,107830.0,0.88689395]
[1748478830597,0.46229276,107840.0,107830.0,0.59229395]
[1748478831721,0.52449276,107840.0,107830.0,0.50124]
[1748478831976,0.52449276,107840.0,107830.0,0.40036]
[1748478832195,0.52449276,107840.0,107830.0,0.50124]
[1748478837547,0.50449276,107840.0,107830.0,0.50124]
[1748478844234,0.44209276,107840.0,107830.0,0.50124]
[1748478844664,0.42209276,107840.0,107830.0,0.50124]
[1748478845499,0.42205276,107840.0,107830.0,0.62279395]
[1748478845740,0.42205276,107840.0,107830.0,0.65499395]
[1748478846342,0.42205276,107840.0,107830.0,0.62449395]
[1748478846579,0.42205276,107840.0,107830.0,0.65559395]
[1748478846812,0.11473276,107840.0,107830.0,0.65559395]
[1748478847052,0.42205276,107840.0,107830.0,0.65559395]
[1748478847485,0.11473276,107840.0,107830.0,0.65559395]
[1748478847683,0.42205276,107840.0,107830.0,0.65559395]
[1748478848361,0.42205276,107840.0,107830.0,0.95019395]
[1748478849881,0.11473276,107840.0,107830.0,0.95019395]
[1748478850269,0.42201276,107840.0,107830.0,0.95019395]
[1748478850471,0.11473276,107840.0,107830.0,0.95019395]
[1748478850648,0.42201276,107840.0,107830.0,0.95019395]
[1748478851068,0.11473276,107840.0,107830.0,0.95019395]
[1748478851273,0.42201276,107840.0,107830.0,0.95019395]
[1748478851706,0.40201276,107840.0,107830.0,0.95019395]
[1748478854097,0.40201276,107840.0,107830.0,0.88689395]
[1748478854341,0.40201276,107840.0,107830.0,0.88669395]
[1748478854557,0.46551276,107840.0,107830.0,0.79564]
[1748478854987,0.46551276,107840.0,107830.0,0.50104]
[1748478860132,0.44551276,107840.0,107830.0,0.50104]
[1748478863314,0.44551276,107840.0,107830.0,0.40036]
[1748478863568,0.44551276,107840.0,107830.0,0.50104]
[1748478867083,0.42551276,107840.0,107830.0,0.50104]
[1748478874239,0.38005282,107840.0,107830.0,0.50104]
[1748478874444,0.56551276,107840.0,107830.0,0.50104]
[1748478881243,0.54551276,107840.0,107830.0,0.50104]
[1748478881478,0.55478558,107840.0,107830.0,0.50104]
[1748478883383,0.56507276,107840.0,107830.0,0.50104]
[1748478886177,0.56503276,107840.0,107830.0,0.50104]
[1748478886391,0.25823276,107840.0,107830.0,0.50104]
[1748478886633,0.56503276,107840.0,107830.0,0.50104]
[1748478888349,0.54503276,107840.0,107830.0,0.50104]
[1748478890328,1.40531703,107840.0,107830.0,0.50084]
[1748478891052,0.99062756,107840.0,107830.0,0.50084]
[1748478891269,1.33086033,107840.0,107830.0,0.50084]
[1748478891901,1.33186033,107840.0,107830.0,0.50084]
[1748478893228,1.33186033,107840.0,107830.0,0.40036]
[1748478893433,1.33186033,107840.0,107830.0,0.50084]
[1748478893636,1.33286033,107840.0,107830.0,0.50084]
[1748478895611,1.31286033,107840.0,107830.0,0.50084]
[1748478897372,0.66582756,107840.0,107830.0,0.50084]
[1748478897607,0.90046553,107840.0,107830.0,0.50084]
[1748478897838,1.20714553,107840.0,107830.0,0.50084]
[1748478898497,0.91606553,107840.0,107830.0,0.50084]
[1748478898714,0.56023276,107840.0,107830.0,0.50084]
[1748478898928,0.86687276,107840.0,107830.0,0.50084]
[1748478899163,0.56023276,107840.0,107830.0,0.50084]
[1748478899409,0.50337276,107840.0,107830.0,0.50084]
[1748478900258,0.51987276,107840.0,107830.0,0.50084]
[1748478902675,0.48337276,107840.0,107830.0,0.51594]
[1748478903133,0.17673276,107840.0,107830.0,0.51594]
[1748478903351,0.48333276,107840.0,107830.0,0.51594]
[1748478904198,0.17673276,107840.0,107830.0,0.62319395]
[1748478904624,0.48329276,107840.0,107830.0,0.62319395]
[1748478905275,0.17673276,107840.0,107830.0,0.62319395]
[1748478905479,0.48329276,107840.0,107830.0,0.62319395]
[1748478906764,0.48329276,107840.0,107830.0,0.60699395]
[1748478906989,0.48329276,107840.0,107830.0,0.62299395]
[1748478907613,0.48329276,107840.0,107830.0,0.91759395]
[1748478908058,0.48321276,107840.0,107830.0,0.91759395]
[1748478909650,0.46321276,107840.0,107830.0,0.91759395]
[1748478910147,0.15673276,107840.0,107830.0,0.91759395]
[1748478910393,0.46317276,107840.0,107830.0,0.91759395]
[1748478913272,0.46317276,107840.0,107830.0,0.90159395]
[1748478913490,0.46317276,107840.0,107830.0,0.60699395]
[1748478917610,0.44317276,107840.0,107830.0,0.60699395]
[1748478919308,0.44317276,107840.0,107830.0,0.90159395]
[1748478920780,0.44317276,107840.0,107830.0,0.60699395]
[1748478922104,0.13673276,107840.0,107830.0,1.14787108]
[1748478922368,0.0112723,107840.0,107830.0,1.2015583]
[1748478922592,0.02981717,107840.0,107830.0,1.17569161]
[1748478922812,0.03908982,107840.0,107830.0,1.20350961]
[1748478923037,0.04836264,107840.0,107830.0,1.20350961]